[Event "*** Titled Tuesday Blitz"]
[Site "Chess.com"]
[Date "2021.04.06"]
[Round "1"]
[White "Gerodot71"]
[Black "LordIron"]
[Result "1-0"]
[WhiteElo "2547"]
[BlackElo "2218"]
[TimeControl "180+1"]
[EndTime "10:08:09 PDT"]
[Termination "Gerodot71 won on time"]

1. d4 {[%clk 0:03:00.9]} 1... g6 {[%clk 0:02:58.6]} 2. e4 {[%clk 0:03:00.4]}
2... Bg7 {[%clk 0:02:59.2]} 3. Nc3 {[%clk 0:03:00.6]} 3... d6 {[%clk 0:02:59.5]}
4. g3 {[%clk 0:03:00.4]} 4... Nd7 {[%clk 0:02:57.4]} 5. Bg2 {[%clk 0:02:59.6]}
5... e5 {[%clk 0:02:57.8]} 6. Nge2 {[%clk 0:02:59.7]} 6... Ne7 {[%clk
0:02:57.1]} 7. O-O {[%clk 0:02:58.1]} 7... O-O {[%clk 0:02:57.2]} 8. Be3 {[%clk
0:02:53.3]} 8... Nc6 {[%clk 0:02:52.7]} 9. Qd2 {[%clk 0:02:41.6]} 9... exd4
{[%clk 0:02:48.7]} 10. Nxd4 {[%clk 0:02:41.4]} 10... Nde5 {[%clk 0:02:49.5]} 11.
b3 {[%clk 0:02:13.8]} 11... Ng4 {[%clk 0:02:36.2]} 12. Nxc6 {[%clk 0:02:13.6]}
12... bxc6 {[%clk 0:02:32.4]} 13. Bd4 {[%clk 0:02:13.9]} 13... Ba6 {[%clk
0:02:21.8]} 14. Rfe1 {[%clk 0:02:12.3]} 14... Ne5 {[%clk 0:01:51.8]} 15. h3
{[%clk 0:01:54.2]} 15... Qd7 {[%clk 0:01:40.7]} 16. Kh1 {[%clk 0:01:44.8]} 16...
c5 {[%clk 0:01:30]} 17. Be3 {[%clk 0:01:43.8]} 17... Rae8 {[%clk 0:01:30.4]} 18.
Rad1 {[%clk 0:01:41.8]} 18... Bb7 {[%clk 0:01:22]} 19. f4 {[%clk 0:01:30.2]}
19... Nc6 {[%clk 0:01:20.8]} 20. Bxc5 {[%clk 0:01:28.6]} 20... f5 {[%clk
0:00:54.6]} 21. Bg1 {[%clk 0:01:22.8]} 21... fxe4 {[%clk 0:00:50.6]} 22. Nxe4
{[%clk 0:01:14.4]} 22... Qf5 {[%clk 0:00:41.6]} 23. Kh2 {[%clk 0:01:08.8]} 23...
Kh8 {[%clk 0:00:36]} 24. Ng5 {[%clk 0:01:04.2]} 24... Rxe1 {[%clk 0:00:30]} 25.
Rxe1 {[%clk 0:01:03.8]} 25... Nd8 {[%clk 0:00:18.2]} 26. Bxb7 {[%clk 0:00:59.2]}
26... Nxb7 {[%clk 0:00:19.1]} 27. Ne6 {[%clk 0:00:59.6]} 27... Re8 {[%clk
0:00:18.6]} 28. Nd4 {[%clk 0:00:51.9]} 28... Qf7 {[%clk 0:00:11.7]} 29. b4
{[%clk 0:00:34.5]} 29... Nd8 {[%clk 0:00:11.3]} 30. b5 {[%clk 0:00:32]} 30...
Ne6 {[%clk 0:00:10.8]} 31. Nc6 {[%clk 0:00:25.2]} 31... Nc5 {[%clk 0:00:10.7]}
32. Bxc5 {[%clk 0:00:24.6]} 32... dxc5 {[%clk 0:00:11.5]} 33. Rxe8+ {[%clk
0:00:23.4]} 33... Qxe8 {[%clk 0:00:11.5]} 34. h4 {[%clk 0:00:23.3]} 34... Bf8
{[%clk 0:00:09]} 35. Qc3+ {[%clk 0:00:20.7]} 35... Kg8 {[%clk 0:00:08.7]} 36.
Qc4+ {[%clk 0:00:19.8]} 36... Kh8 {[%clk 0:00:08.3]} 37. a4 {[%clk 0:00:18.6]}
37... Bd6 {[%clk 0:00:08.1]} 38. Qd3 {[%clk 0:00:18.1]} 38... Qe6 {[%clk
0:00:07.2]} 39. c4 {[%clk 0:00:17.5]} 39... Qg4 {[%clk 0:00:06.9]} 40. a5 {[%clk
0:00:17.5]} 40... h6 {[%clk 0:00:05.6]} 41. Nxa7 {[%clk 0:00:15.4]} 41... g5
{[%clk 0:00:05.5]} 42. hxg5 {[%clk 0:00:15.5]} 42... hxg5 {[%clk 0:00:05.5]} 43.
fxg5 {[%clk 0:00:14.4]} 43... Qh5+ {[%clk 0:00:05.4]} 44. Kg2 {[%clk 0:00:14.2]}
44... Qxg5 {[%clk 0:00:05.5]} 45. Nc8 {[%clk 0:00:14.3]} 45... Qg4 {[%clk
0:00:03.9]} 46. Nxd6 {[%clk 0:00:13.9]} 46... cxd6 {[%clk 0:00:04.8]} 47. a6
{[%clk 0:00:14.2]} 47... Qd7 {[%clk 0:00:04.6]} 48. Qc3+ {[%clk 0:00:13.6]}
48... Kg8 {[%clk 0:00:04.6]} 49. Qf3 {[%clk 0:00:14.1]} 1-0

[Event "*** Titled Tuesday Blitz"]
[Site "Chess.com"]
[Date "2021.04.06"]
[Round "1"]
[White "muchojogo"]
[Black "GalperinPlaton"]
[Result "0-1"]
[WhiteElo "2439"]
[BlackElo "2840"]
[TimeControl "180+1"]
[EndTime "10:08:10 PDT"]
[Termination "GalperinPlaton won by resignation"]

1. d4 {[%clk 0:03:00.9]} 1... Nf6 {[%clk 0:02:46.8]} 2. Bf4 {[%clk 0:02:59.8]}
2... b6 {[%clk 0:02:46]} 3. e3 {[%clk 0:03:00]} 3... Bb7 {[%clk 0:02:44.9]} 4.
Nf3 {[%clk 0:03:00.6]} 4... e6 {[%clk 0:02:45.3]} 5. Be2 {[%clk 0:03:01]} 5...
d6 {[%clk 0:02:45.7]} 6. h3 {[%clk 0:02:59.5]} 6... Nbd7 {[%clk 0:02:46.2]} 7.
O-O {[%clk 0:03:00]} 7... h6 {[%clk 0:02:46.6]} 8. a4 {[%clk 0:02:59.7]} 8... g5
{[%clk 0:02:46.7]} 9. Bh2 {[%clk 0:02:52.2]} 9... g4 {[%clk 0:02:46.6]} 10. hxg4
{[%clk 0:02:49.6]} 10... Nxg4 {[%clk 0:02:47.5]} 11. Bg3 {[%clk 0:02:50.4]}
11... h5 {[%clk 0:02:47.5]} 12. Bh4 {[%clk 0:02:44.7]} 12... Be7 {[%clk
0:02:47]} 13. Bxe7 {[%clk 0:02:45.3]} 13... Qxe7 {[%clk 0:02:47.9]} 14. a5
{[%clk 0:02:45.2]} 14... Rg8 {[%clk 0:02:45.5]} 15. Nbd2 {[%clk 0:02:31.7]}
15... h4 {[%clk 0:02:44.3]} 16. a6 {[%clk 0:02:25.6]} 16... Bc6 {[%clk
0:02:42.6]} 17. b4 {[%clk 0:02:12.7]} 17... f5 {[%clk 0:02:38.1]} 18. b5 {[%clk
0:02:10.6]} 18... Be4 {[%clk 0:02:37.6]} 19. Nxe4 {[%clk 0:02:02]} 19... fxe4
{[%clk 0:02:38.5]} 20. Nd2 {[%clk 0:02:02.6]} 20... Ndf6 {[%clk 0:02:38.2]} 21.
Nxe4 {[%clk 0:01:47.8]} 21... Nxe4 {[%clk 0:02:13.3]} 22. Bxg4 {[%clk
0:01:47.1]} 22... O-O-O {[%clk 0:02:11.9]} 23. Qf3 {[%clk 0:01:35.5]} 23... d5
{[%clk 0:02:10.3]} 24. Bh3 {[%clk 0:01:14.6]} 24... Rdf8 {[%clk 0:01:23.6]} 25.
Qh5 {[%clk 0:01:06.3]} 25... Ng5 {[%clk 0:01:16.3]} 26. Kh1 {[%clk 0:00:56.6]}
26... Qf6 {[%clk 0:01:10]} 27. Qg4 {[%clk 0:00:49.4]} 27... Kd7 {[%clk
0:01:05.5]} 28. c4 {[%clk 0:00:48.2]} 28... dxc4 {[%clk 0:00:58.4]} 29. d5
{[%clk 0:00:47.5]} 29... c3 {[%clk 0:00:55.9]} 30. dxe6+ {[%clk 0:00:44.6]}
30... Ke8 {[%clk 0:00:52.9]} 31. e7 {[%clk 0:00:35.4]} 31... Qxe7 {[%clk
0:00:50.8]} 32. Qh5+ {[%clk 0:00:31.4]} 32... Qf7 {[%clk 0:00:49.3]} 33. Qg4
{[%clk 0:00:26.2]} 33... Qe7 {[%clk 0:00:48.7]} 34. Rad1 {[%clk 0:00:24]} 34...
Ne4 {[%clk 0:00:40.5]} 35. Qh5+ {[%clk 0:00:22]} 35... Rf7 {[%clk 0:00:36.8]}
36. Bd7+ {[%clk 0:00:18]} 36... Kf8 {[%clk 0:00:35.5]} 37. Kg1 {[%clk
0:00:15.9]} 37... Qg5 {[%clk 0:00:30.6]} 38. Qxg5 {[%clk 0:00:15.5]} 38... Rxg5
{[%clk 0:00:31.4]} 39. Bh3 {[%clk 0:00:14.6]} 39... Rxb5 {[%clk 0:00:28.1]} 40.
Rd8+ {[%clk 0:00:13.9]} 40... Kg7 {[%clk 0:00:28.2]} 41. Ra8 {[%clk 0:00:13.6]}
41... c6 {[%clk 0:00:26.5]} 42. Rc8 {[%clk 0:00:12.5]} 42... Rc5 {[%clk
0:00:25.8]} 43. Be6 {[%clk 0:00:11.6]} 43... Re7 {[%clk 0:00:23.3]} 44. Bg4
{[%clk 0:00:11]} 44... Nd2 {[%clk 0:00:21.5]} 45. Rc1 {[%clk 0:00:10.7]} 45...
c2 {[%clk 0:00:20.9]} 46. Bf5 {[%clk 0:00:07.9]} 46... Rxf5 {[%clk 0:00:20.4]}
47. Rxc2 {[%clk 0:00:08.3]} 47... Nb3 {[%clk 0:00:20]} 48. R2xc6 {[%clk
0:00:08.5]} 48... Nc5 {[%clk 0:00:19.6]} 49. R6c7 {[%clk 0:00:08.5]} 49... Rxc7
{[%clk 0:00:19.4]} 50. Rxc7+ {[%clk 0:00:08.4]} 50... Rf7 {[%clk 0:00:20.3]} 51.
Rc8 {[%clk 0:00:09.3]} 51... Nxa6 {[%clk 0:00:20.4]} 52. Ra8 {[%clk 0:00:09.3]}
52... Nc5 {[%clk 0:00:20.8]} 53. Kh2 {[%clk 0:00:09.6]} 53... a5 {[%clk
0:00:21.3]} 54. Kh3 {[%clk 0:00:09.8]} 54... a4 {[%clk 0:00:21.6]} 55. f3 {[%clk
0:00:08.3]} 55... b5 {[%clk 0:00:21.6]} 56. Kxh4 {[%clk 0:00:08.4]} 56... b4
{[%clk 0:00:22.1]} 57. e4 {[%clk 0:00:08.9]} 57... a3 {[%clk 0:00:22.3]} 58. e5
{[%clk 0:00:08.9]} 58... b3 {[%clk 0:00:21.3]} 59. Rxa3 {[%clk 0:00:07.9]} 59...
b2 {[%clk 0:00:21.5]} 60. e6 {[%clk 0:00:08.4]} 60... Rc7 {[%clk 0:00:19.9]} 61.
e7 {[%clk 0:00:07.4]} 61... Rxe7 {[%clk 0:00:19.4]} 0-1

[Event "*** Titled Tuesday Blitz"]
[Site "Chess.com"]
[Date "2021.04.06"]
[Round "1"]
[White "Byniolus"]
[Black "J36225"]
[Result "1-0"]
[WhiteElo "2889"]
[BlackElo "2453"]
[TimeControl "180+1"]
[EndTime "10:08:11 PDT"]
[Termination "Byniolus won by resignation"]

1. d4 {[%clk 0:03:00.9]} 1... Nf6 {[%clk 0:02:57]} 2. Nf3 {[%clk 0:03:00]} 2...
e6 {[%clk 0:02:55.1]} 3. Bf4 {[%clk 0:02:59.3]} 3... d5 {[%clk 0:02:54.6]} 4. e3
{[%clk 0:02:58.9]} 4... Bd6 {[%clk 0:02:54.3]} 5. Bg3 {[%clk 0:02:58.7]} 5... c5
{[%clk 0:02:54]} 6. c3 {[%clk 0:02:58.4]} 6... O-O {[%clk 0:02:53.4]} 7. Nbd2
{[%clk 0:02:58.3]} 7... Qc7 {[%clk 0:02:52.4]} 8. Ne5 {[%clk 0:02:58.1]} 8...
Nc6 {[%clk 0:02:47.3]} 9. f4 {[%clk 0:02:58]} 9... Ne7 {[%clk 0:02:43.7]} 10.
Bd3 {[%clk 0:02:51.3]} 10... b6 {[%clk 0:02:43.1]} 11. O-O {[%clk 0:02:45.6]}
11... Nf5 {[%clk 0:02:42.5]} 12. Bf2 {[%clk 0:02:44.1]} 12... Be7 {[%clk
0:02:41.9]} 13. Qe2 {[%clk 0:02:19.2]} 13... Bb7 {[%clk 0:02:35.5]} 14. Rac1
{[%clk 0:02:10.4]} 14... Nd6 {[%clk 0:02:32]} 15. Bh4 {[%clk 0:02:07.3]} 15...
Nfe4 {[%clk 0:02:29.1]} 16. Bxe7 {[%clk 0:02:06.6]} 16... Qxe7 {[%clk
0:02:28.6]} 17. a3 {[%clk 0:01:54.7]} 17... Rac8 {[%clk 0:02:06]} 18. Nxe4
{[%clk 0:01:45.1]} 18... Nxe4 {[%clk 0:02:04.4]} 19. Rfd1 {[%clk 0:01:38.8]}
19... f6 {[%clk 0:01:31.3]} 20. Nf3 {[%clk 0:01:32.6]} 20... Qd6 {[%clk
0:01:23]} 21. Qe1 {[%clk 0:01:12.6]} 21... cxd4 {[%clk 0:01:17.1]} 22. cxd4
{[%clk 0:01:09.2]} 22... Rxc1 {[%clk 0:01:06.5]} 23. Rxc1 {[%clk 0:01:10.1]}
23... Rc8 {[%clk 0:01:04.7]} 24. Rxc8+ {[%clk 0:00:57.7]} 24... Bxc8 {[%clk
0:01:05.6]} 25. Qc1 {[%clk 0:00:56]} 25... Bb7 {[%clk 0:01:03.9]} 26. Qc2 {[%clk
0:00:35.6]} 26... Qc6 {[%clk 0:00:53.2]} 27. Qxc6 {[%clk 0:00:35.3]} 27... Bxc6
{[%clk 0:00:54.1]} 28. Kf1 {[%clk 0:00:34.5]} 28... Kf7 {[%clk 0:00:52.1]} 29.
Ke2 {[%clk 0:00:34.8]} 29... Ke7 {[%clk 0:00:51.6]} 30. Kd1 {[%clk 0:00:26.7]}
30... Kd6 {[%clk 0:00:41.1]} 31. Kc2 {[%clk 0:00:25.2]} 31... h6 {[%clk
0:00:40.5]} 32. Bxe4 {[%clk 0:00:20.5]} 32... dxe4 {[%clk 0:00:40.1]} 33. Nd2
{[%clk 0:00:21.4]} 33... Bd5 {[%clk 0:00:38.7]} 34. Kc3 {[%clk 0:00:21.2]} 34...
g5 {[%clk 0:00:37.1]} 35. g3 {[%clk 0:00:20.2]} 35... a5 {[%clk 0:00:25.6]} 36.
b4 {[%clk 0:00:19.5]} 36... f5 {[%clk 0:00:19.7]} 37. bxa5 {[%clk 0:00:18.9]}
37... bxa5 {[%clk 0:00:19.5]} 38. h4 {[%clk 0:00:14.7]} 38... gxf4 {[%clk
0:00:16.5]} 39. gxf4 {[%clk 0:00:13.8]} 39... Kc6 {[%clk 0:00:11.8]} 40. a4
{[%clk 0:00:09.3]} 40... h5 {[%clk 0:00:04]} 41. Nc4 {[%clk 0:00:05.4]} 41...
Bxc4 {[%clk 0:00:01.7]} 42. Kxc4 {[%clk 0:00:06.3]} 42... Kd6 {[%clk 0:00:02.1]}
43. Kb5 {[%clk 0:00:06.6]} 43... Kd5 {[%clk 0:00:02.6]} 44. Kxa5 {[%clk
0:00:06.8]} 44... Kc4 {[%clk 0:00:03.5]} 45. Kb6 {[%clk 0:00:06.4]} 45... Kd3
{[%clk 0:00:04.4]} 46. a5 {[%clk 0:00:07]} 46... Kxe3 {[%clk 0:00:05.3]} 47. a6
{[%clk 0:00:07.6]} 47... Kf2 {[%clk 0:00:06.2]} 48. a7 {[%clk 0:00:05.7]} 48...
e3 {[%clk 0:00:07.1]} 49. a8=Q {[%clk 0:00:06]} 49... e2 {[%clk 0:00:07.3]} 50.
Qa2 {[%clk 0:00:05.5]} 50... Kf1 {[%clk 0:00:06.3]} 51. Qxe6 {[%clk 0:00:05.4]}
51... e1=Q {[%clk 0:00:05.7]} 52. Qxe1+ {[%clk 0:00:05.9]} 52... Kxe1 {[%clk
0:00:06.6]} 53. d5 {[%clk 0:00:06.7]} 53... Kf2 {[%clk 0:00:07.5]} 54. d6 {[%clk
0:00:07.6]} 54... Kg3 {[%clk 0:00:08.4]} 55. d7 {[%clk 0:00:08.5]} 55... Kxf4
{[%clk 0:00:09.2]} 56. d8=Q {[%clk 0:00:09.4]} 56... Kg4 {[%clk 0:00:10.1]} 57.
Qg5+ {[%clk 0:00:09.7]} 1-0

[Event "*** Titled Tuesday Blitz"]
[Site "Chess.com"]
[Date "2021.04.06"]
[Round "1"]
[White "PavelChernomordik"]
[Black "Skat2704"]
[Result "0-1"]
[WhiteElo "2337"]
[BlackElo "2636"]
[TimeControl "180+1"]
[EndTime "10:08:11 PDT"]
[Termination "Skat2704 won on time"]

1. e4 {[%clk 0:03:00.9]} 1... c6 {[%clk 0:02:59.6]} 2. Nc3 {[%clk 0:03:00.2]}
2... d5 {[%clk 0:02:59.7]} 3. Qf3 {[%clk 0:03:00.6]} 3... dxe4 {[%clk
0:02:58.5]} 4. Nxe4 {[%clk 0:03:00]} 4... Nf6 {[%clk 0:02:59.1]} 5. Nxf6+ {[%clk
0:02:59.6]} 5... exf6 {[%clk 0:02:59.5]} 6. Bc4 {[%clk 0:02:58.8]} 6... Bd6
{[%clk 0:02:58.5]} 7. Ne2 {[%clk 0:02:58.3]} 7... O-O {[%clk 0:02:57.8]} 8. d4
{[%clk 0:02:56]} 8... Na6 {[%clk 0:02:56.2]} 9. c3 {[%clk 0:02:51.9]} 9... Nc7
{[%clk 0:02:55.3]} 10. Bd2 {[%clk 0:02:46.7]} 10... Be6 {[%clk 0:02:51.1]} 11.
Bxe6 {[%clk 0:02:41.6]} 11... fxe6 {[%clk 0:02:52]} 12. O-O-O {[%clk 0:02:41]}
12... e5 {[%clk 0:02:43.3]} 13. g4 {[%clk 0:02:33.7]} 13... Qe7 {[%clk
0:02:38.6]} 14. Ng3 {[%clk 0:02:30]} 14... Qe6 {[%clk 0:02:30]} 15. Kb1 {[%clk
0:02:26.4]} 15... Rfe8 {[%clk 0:02:13.6]} 16. Nf5 {[%clk 0:02:20.3]} 16... Bf8
{[%clk 0:02:12.8]} 17. Rde1 {[%clk 0:02:12.8]} 17... Nd5 {[%clk 0:01:57.8]} 18.
h4 {[%clk 0:02:01.1]} 18... c5 {[%clk 0:01:21.9]} 19. dxe5 {[%clk 0:01:56.8]}
19... fxe5 {[%clk 0:01:19.4]} 20. h5 {[%clk 0:01:50.3]} 20... c4 {[%clk
0:01:10.6]} 21. g5 {[%clk 0:01:41.7]} 21... e4 {[%clk 0:01:00.3]} 22. Qh3 {[%clk
0:01:35.8]} 22... Qb6 {[%clk 0:00:47.2]} 23. Ka1 {[%clk 0:01:19.6]} 23... Qxf2
{[%clk 0:00:41.1]} 24. Rh2 {[%clk 0:01:18.9]} 24... Qf3 {[%clk 0:00:37.7]} 25.
Rf1 {[%clk 0:01:02.7]} 25... Qxh3 {[%clk 0:00:36.5]} 26. Rxh3 {[%clk 0:01:02.4]}
26... Rad8 {[%clk 0:00:35.8]} 27. Bc1 {[%clk 0:00:59.7]} 27... Bc5 {[%clk
0:00:33]} 28. g6 {[%clk 0:00:52.3]} 28... e3 {[%clk 0:00:29.3]} 29. gxh7+ {[%clk
0:00:49.9]} 29... Kxh7 {[%clk 0:00:29.4]} 30. Rg3 {[%clk 0:00:44.2]} 30... Rd7
{[%clk 0:00:28.9]} 31. Re1 {[%clk 0:00:39.6]} 31... Rf7 {[%clk 0:00:25.6]} 32.
Rg5 {[%clk 0:00:34.4]} 32... e2 {[%clk 0:00:23.4]} 33. Ng3 {[%clk 0:00:29.7]}
33... Be3 {[%clk 0:00:17.7]} 34. Bxe3 {[%clk 0:00:19.8]} 34... Nxe3 {[%clk
0:00:18.6]} 35. Rxe2 {[%clk 0:00:17.9]} 35... Nc2+ {[%clk 0:00:18.6]} 36. Kb1
{[%clk 0:00:17.3]} 36... Rxe2 {[%clk 0:00:17.1]} 37. Nxe2 {[%clk 0:00:16.9]}
37... Ne3 {[%clk 0:00:17.1]} 38. b3 {[%clk 0:00:15.6]} 38... Rf1+ {[%clk
0:00:16.9]} 39. Kb2 {[%clk 0:00:13.8]} 39... Rf2 {[%clk 0:00:17.4]} 40. bxc4
{[%clk 0:00:09.5]} 40... Rxe2+ {[%clk 0:00:17.9]} 41. Kb3 {[%clk 0:00:09.2]}
41... Kh6 {[%clk 0:00:18.3]} 42. Rg6+ {[%clk 0:00:08.7]} 42... Kxh5 {[%clk
0:00:18.1]} 43. Rxg7 {[%clk 0:00:08.5]} 43... Nd1 {[%clk 0:00:18.8]} 44. c5
{[%clk 0:00:04.3]} 44... Rb2+ {[%clk 0:00:18.5]} 45. Kc4 {[%clk 0:00:04.2]}
45... Ne3+ {[%clk 0:00:18.8]} 46. Kd4 {[%clk 0:00:03.7]} 46... Nc2+ {[%clk
0:00:18.6]} 47. Ke5 {[%clk 0:00:02.8]} 47... Na3 {[%clk 0:00:18.2]} 48. Kd6
{[%clk 0:00:01.7]} 48... Nc4+ {[%clk 0:00:18]} 49. Kc7 {[%clk 0:00:01.4]} 49...
Rb5 {[%clk 0:00:17.7]} 50. Kb8 {[%clk 0:00:02.2]} 50... Na5 {[%clk 0:00:16.3]}
51. Rc7 {[%clk 0:00:02]} 51... Rb2 {[%clk 0:00:16.4]} 52. a4 {[%clk 0:00:01.7]}
52... Rb3 {[%clk 0:00:16.3]} 53. Kxa7 {[%clk 0:00:01.3]} 53... Rxc3 {[%clk
0:00:16.5]} 0-1

[Event "*** Titled Tuesday Blitz"]
[Site "Chess.com"]
[Date "2021.04.06"]
[Round "1"]
[White "Matols"]
[Black "MPGM"]
[Result "1-0"]
[WhiteElo "2298"]
[BlackElo "2578"]
[TimeControl "180+1"]
[EndTime "10:08:11 PDT"]
[Termination "Matols won by resignation"]

1. d4 {[%clk 0:03:00.9]} 1... Nf6 {[%clk 0:02:54.8]} 2. c4 {[%clk 0:03:00.4]}
2... e6 {[%clk 0:02:53.5]} 3. g3 {[%clk 0:03:00.1]} 3... c5 {[%clk 0:02:51]} 4.
d5 {[%clk 0:02:59.5]} 4... exd5 {[%clk 0:02:48.7]} 5. cxd5 {[%clk 0:03:00.4]}
5... d6 {[%clk 0:02:45.7]} 6. Nc3 {[%clk 0:03:00.4]} 6... g6 {[%clk 0:02:43.6]}
7. Bg2 {[%clk 0:03:00.5]} 7... Bg7 {[%clk 0:02:44]} 8. Nf3 {[%clk 0:03:00.4]}
8... O-O {[%clk 0:02:44.4]} 9. O-O {[%clk 0:03:00.6]} 9... Ne8 {[%clk 0:02:32]}
10. Bg5 {[%clk 0:02:55.8]} 10... f6 {[%clk 0:02:12.7]} 11. Bf4 {[%clk
0:02:54.7]} 11... Nd7 {[%clk 0:02:08.3]} 12. e4 {[%clk 0:02:39.6]} 12... Ne5
{[%clk 0:01:55.4]} 13. Nxe5 {[%clk 0:01:51.5]} 13... dxe5 {[%clk 0:01:54]} 14.
Be3 {[%clk 0:01:50.9]} 14... b6 {[%clk 0:01:52]} 15. Qd2 {[%clk 0:01:46.8]}
15... Nd6 {[%clk 0:01:51]} 16. Rfe1 {[%clk 0:01:44]} 16... Nc4 {[%clk
0:01:27.8]} 17. Qc1 {[%clk 0:01:41.4]} 17... Nxe3 {[%clk 0:01:19.9]} 18. Qxe3
{[%clk 0:01:40.7]} 18... Bd7 {[%clk 0:01:09.8]} 19. Rad1 {[%clk 0:01:39.4]}
19... h5 {[%clk 0:01:03.6]} 20. h4 {[%clk 0:01:38.2]} 20... Kh7 {[%clk
0:00:59.7]} 21. Kh2 {[%clk 0:01:36.4]} 21... f5 {[%clk 0:00:55.1]} 22. exf5
{[%clk 0:01:34.1]} 22... gxf5 {[%clk 0:00:55.1]} 23. d6 {[%clk 0:01:31.7]} 23...
f4 {[%clk 0:00:48.2]} 24. Qd3+ {[%clk 0:01:28.9]} 24... Kh8 {[%clk 0:00:27.8]}
25. Nd5 {[%clk 0:01:04.1]} 25... Bf5 {[%clk 0:00:18.4]} 26. Be4 {[%clk
0:00:50.8]} 26... Bxe4 {[%clk 0:00:16.4]} 27. Qxe4 {[%clk 0:00:50.9]} 27...
fxg3+ {[%clk 0:00:15.3]} 28. fxg3 {[%clk 0:00:50.2]} 28... Qxd6 {[%clk
0:00:15.8]} 29. Nf4 {[%clk 0:00:47]} 29... Qf6 {[%clk 0:00:09.4]} 30. Ng6+
{[%clk 0:00:46.1]} 30... Kg8 {[%clk 0:00:09.9]} 31. Nxf8 {[%clk 0:00:45.8]}
31... Rxf8 {[%clk 0:00:10.8]} 32. Re2 {[%clk 0:00:44.7]} 32... Qf7 {[%clk
0:00:08.8]} 33. Qd5 {[%clk 0:00:43.7]} 33... e4 {[%clk 0:00:03.4]} 34. Qxf7+
{[%clk 0:00:40.3]} 34... Rxf7 {[%clk 0:00:03.2]} 35. Kg2 {[%clk 0:00:39.6]}
35... Bd4 {[%clk 0:00:03]} 36. b3 {[%clk 0:00:31.1]} 36... e3 {[%clk 0:00:02.5]}
37. Rf1 {[%clk 0:00:30.6]} 37... Kg7 {[%clk 0:00:01.3]} 38. Rxf7+ {[%clk
0:00:29.4]} 38... Kxf7 {[%clk 0:00:02.2]} 39. Kf3 {[%clk 0:00:29.5]} 39... Kf6
{[%clk 0:00:03]} 40. Ke4 {[%clk 0:00:29.4]} 40... a5 {[%clk 0:00:02.8]} 41. Re1
{[%clk 0:00:29]} 41... b5 {[%clk 0:00:02.8]} 42. Rf1+ {[%clk 0:00:28.9]} 42...
Kg6 {[%clk 0:00:03.4]} 43. Kd3 {[%clk 0:00:28.4]} 43... a4 {[%clk 0:00:03.1]}
44. bxa4 {[%clk 0:00:25.6]} 44... bxa4 {[%clk 0:00:04]} 45. Rf8 {[%clk
0:00:24.6]} 45... a3 {[%clk 0:00:04.9]} 46. Ra8 {[%clk 0:00:23.4]} 46... Kf5
{[%clk 0:00:04.7]} 47. Rxa3 {[%clk 0:00:22.4]} 47... Kg4 {[%clk 0:00:04.9]} 48.
Ke2 {[%clk 0:00:19.5]} 48... Kxg3 {[%clk 0:00:04.9]} 49. Rxe3+ {[%clk
0:00:18.3]} 49... Bxe3 {[%clk 0:00:04.7]} 50. Kxe3 {[%clk 0:00:18.8]} 50... Kxh4
{[%clk 0:00:05.4]} 51. a4 {[%clk 0:00:19]} 51... c4 {[%clk 0:00:03]} 52. a5
{[%clk 0:00:19.2]} 52... c3 {[%clk 0:00:03.5]} 53. a6 {[%clk 0:00:18.9]} 53...
c2 {[%clk 0:00:03.5]} 54. Kd2 {[%clk 0:00:19.1]} 54... Kg3 {[%clk 0:00:04.4]}
55. a7 {[%clk 0:00:18.8]} 55... h4 {[%clk 0:00:04.3]} 56. a8=Q {[%clk
0:00:18.9]} 56... h3 {[%clk 0:00:04.8]} 57. Qh1 {[%clk 0:00:18.7]} 1-0

[Event "*** Titled Tuesday Blitz"]
[Site "Chess.com"]
[Date "2021.04.06"]
[Round "1"]
[White "ehrenfeld"]
[Black "Chamal_Gedgafov"]
[Result "1-0"]
[WhiteElo "2534"]
[BlackElo "2202"]
[TimeControl "180+1"]
[EndTime "10:08:12 PDT"]
[Termination "ehrenfeld won on time"]

1. e4 {[%clk 0:02:58.7]} 1... e6 {[%clk 0:02:59.1]} 2. d4 {[%clk 0:02:57.9]}
2... d5 {[%clk 0:02:56.8]} 3. e5 {[%clk 0:02:57.6]} 3... c5 {[%clk 0:02:55.2]}
4. c3 {[%clk 0:02:56.4]} 4... Nc6 {[%clk 0:02:54.8]} 5. Nf3 {[%clk 0:02:55.4]}
5... Qb6 {[%clk 0:02:54.3]} 6. a3 {[%clk 0:02:54.2]} 6... c4 {[%clk 0:02:53.8]}
7. Nbd2 {[%clk 0:02:51.5]} 7... Bd7 {[%clk 0:02:51]} 8. Be2 {[%clk 0:02:51.4]}
8... Na5 {[%clk 0:02:50.7]} 9. O-O {[%clk 0:02:48.8]} 9... Ne7 {[%clk
0:02:50.4]} 10. Ne1 {[%clk 0:02:35.6]} 10... Nf5 {[%clk 0:02:47.4]} 11. g3
{[%clk 0:02:33.6]} 11... Be7 {[%clk 0:02:39.9]} 12. Ng2 {[%clk 0:02:33.3]} 12...
h5 {[%clk 0:02:34.9]} 13. Rb1 {[%clk 0:02:06.2]} 13... h4 {[%clk 0:02:16.7]} 14.
Nf3 {[%clk 0:02:00.8]} 14... h3 {[%clk 0:02:07.9]} 15. Ne3 {[%clk 0:01:59.2]}
15... Nxe3 {[%clk 0:01:51.7]} 16. Bxe3 {[%clk 0:01:58.3]} 16... O-O-O {[%clk
0:01:51]} 17. Bg5 {[%clk 0:01:44.3]} 17... f6 {[%clk 0:01:44.9]} 18. Bf4 {[%clk
0:01:38.3]} 18... Rdg8 {[%clk 0:01:37.3]} 19. Re1 {[%clk 0:01:32.3]} 19... Bd8
{[%clk 0:01:28.9]} 20. exf6 {[%clk 0:01:30.8]} 20... gxf6 {[%clk 0:01:28.3]} 21.
Bf1 {[%clk 0:01:30.2]} 21... Bc7 {[%clk 0:01:24.1]} 22. Bxc7 {[%clk 0:01:28]}
22... Qxc7 {[%clk 0:01:23.2]} 23. Kh1 {[%clk 0:01:22.4]} 23... Kb8 {[%clk
0:01:12.2]} 24. Re3 {[%clk 0:01:16.6]} 24... Qd6 {[%clk 0:01:07.7]} 25. Qe2
{[%clk 0:01:13.9]} 25... Nc6 {[%clk 0:01:01]} 26. Re1 {[%clk 0:01:11.7]} 26...
Ne7 {[%clk 0:01:00.2]} 27. Rxe6 {[%clk 0:01:04.4]} 27... Bxe6 {[%clk 0:00:59.7]}
28. Qxe6 {[%clk 0:01:04.5]} 28... Qxe6 {[%clk 0:00:57.5]} 29. Rxe6 {[%clk
0:01:04.3]} 29... Nc6 {[%clk 0:00:55.9]} 30. Rd6 {[%clk 0:00:51.1]} 30... Rd8
{[%clk 0:00:48.6]} 31. Rxd8+ {[%clk 0:00:48]} 31... Rxd8 {[%clk 0:00:49.5]} 32.
Bxh3 {[%clk 0:00:47.2]} 32... Re8 {[%clk 0:00:49.4]} 33. Bf1 {[%clk 0:00:45.6]}
33... Ne7 {[%clk 0:00:37.9]} 34. Kg2 {[%clk 0:00:44.9]} 34... Nf5 {[%clk
0:00:34.5]} 35. h4 {[%clk 0:00:41.6]} 35... Nd6 {[%clk 0:00:32.7]} 36. h5 {[%clk
0:00:27.3]} 36... b5 {[%clk 0:00:31.9]} 37. Nh4 {[%clk 0:00:26.5]} 37... Nf7
{[%clk 0:00:19.3]} 38. Nf5 {[%clk 0:00:22.4]} 38... a5 {[%clk 0:00:18]} 39. Ne3
{[%clk 0:00:21.9]} 39... Rd8 {[%clk 0:00:16.1]} 40. Be2 {[%clk 0:00:21.8]} 40...
Kc7 {[%clk 0:00:16]} 41. Bf3 {[%clk 0:00:21.8]} 41... Kc6 {[%clk 0:00:14]} 42.
g4 {[%clk 0:00:19.1]} 42... Nd6 {[%clk 0:00:13.4]} 43. Kg3 {[%clk 0:00:18.3]}
43... Ne4+ {[%clk 0:00:13.2]} 44. Bxe4 {[%clk 0:00:18.4]} 44... dxe4 {[%clk
0:00:12.7]} 45. Kf4 {[%clk 0:00:19]} 45... Re8 {[%clk 0:00:11.3]} 46. Nf5 {[%clk
0:00:17.8]} 46... b4 {[%clk 0:00:10.7]} 47. axb4 {[%clk 0:00:16.8]} 47... axb4
{[%clk 0:00:11.1]} 48. cxb4 {[%clk 0:00:16.6]} 48... Kd5 {[%clk 0:00:08.6]} 49.
h6 {[%clk 0:00:15.3]} 49... Rb8 {[%clk 0:00:08]} 50. b5 {[%clk 0:00:14.5]} 50...
Rxb5 {[%clk 0:00:07.4]} 51. h7 {[%clk 0:00:14.7]} 51... Rb8 {[%clk 0:00:08.3]}
52. Ne7+ {[%clk 0:00:14.6]} 52... Ke6 {[%clk 0:00:06.2]} 53. Ng8 {[%clk
0:00:15.1]} 53... Rxb2 {[%clk 0:00:03.6]} 54. h8=Q {[%clk 0:00:14.5]} 54...
Rxf2+ {[%clk 0:00:02.5]} 55. Kxe4 {[%clk 0:00:13.7]} 1-0